{"text_format":"1","workbook":"xlsx","n_sheets":6,"sheets":["MENU","4 ANOS","5 ANOS","6 ANOS","7 ANOS","8 ANOS"],"not_rendered":{"charts":0,"images":10,"macros":1,"external_links":0,"defined_names":41,"comments":0,"pivot_tables":0},"unopened":[],"bounds":{"document_bytes":16777216,"sheet_cells":100000,"rows_first":2000,"rows_last":500,"rows_between":2000,"halvings":0,"cell_chars":16384,"cell_head_chars":4096},"cells_cut":0,"cells_raw":0,"read":"whole","date_system":"1900"}

{"sheet":"MENU","index":0,"n_rows":37,"n_cols":11,"rows_kept":37,"cut":false,"hidden":false,"merged":[[2,0,2,10],[38,0,38,10],[6,0,32,0],[36,10,36,14]]}
[]
[]
[]
[]
[]
[]
[]
[]
[]
[]
[]
[]
[]
[]
[]
[]
[]
[]
[]
[]
[]
[]
[]
[]
[]
[]
[]
[]
[]
[]
[]
[]
[]
[]
[]
[]
[null,null,null,null,null,null,null,null,null,null,"Última atualização: 19/02/2020"]

{"sheet":"4 ANOS","index":1,"n_rows":9,"n_cols":21,"rows_kept":9,"cut":false,"hidden":false,"merged":[[5,10,6,11],[4,19,7,19],[4,20,7,20],[4,12,4,16],[5,12,5,16],[6,12,6,13],[6,14,6,15],[6,16,7,16],[5,1,7,1],[5,2,7,2],[5,4,7,4],[0,1,2,5],[0,6,0,18],[3,1,3,5],[4,6,4,7],[4,8,4,9],[4,10,4,11],[4,17,4,18],[5,17,6,18],[1,6,2,15],[5,3,7,3],[5,5,7,5],[5,6,6,7],[5,8,6,9]]}
[]
[null,null,null,null,null,null,"Categoria: 04 anos  Diretor Regional: CHIARI"]
[]
[]
[null,null,null,null,null,null,"1ª ETAPA ",null,"2ª ETAPA",null,"3ª ETAPA",null,"4ª ETAPA",null,null,null,null,"5ª ETAPA",null,"QTDE PROVAS","TOTAL PONTOS"]
[null,"R","ANIMAL","RAÇA","PROPRIETÁRIO","CRIADOR","I  Temporada Oficial",null,"II Temporada Oficial",null,"III Temporada Oficial",null,"Campeonato Mineiro de Cavalos Novos",null,null,null,null,"V Temporada Oficial"]
[null,null,null,null,null,null,null,null,null,null,null,null,"1º DIA",null,"2º DIA",null,"TOTAL"]
[null,null,null,null,null,null,"CL","TOTAL","CL","TOTAL","CL","TOTAL","CL","PTS","CL","PTS",null,"CL","TOTAL"]
[null,1,"PLUCKY BOY PK","BH","PK HIPISMO EIRELI - ME","HARAS PK",1,5,null,null,null,null,null,null,null,null,null,null,null,{"$f":"SUBTOTAL(3,G9,I9,K9,R9,M9,O9)","v":1},{"$f":"SUM(Q9,S9,L9,J9,H9)","v":5}]

{"sheet":"5 ANOS","index":2,"n_rows":14,"n_cols":21,"rows_kept":14,"cut":false,"hidden":false,"merged":[[4,19,7,19],[4,20,7,20],[5,1,7,1],[5,2,7,2],[5,3,7,3],[5,4,7,4],[5,5,7,5],[5,6,6,7],[5,8,6,9],[5,10,6,11],[5,12,5,16],[5,17,6,18],[6,12,6,13],[6,14,6,15],[6,16,7,16],[0,1,2,5],[0,6,0,18],[1,6,2,15],[3,1,3,5],[4,6,4,7],[4,8,4,9],[4,10,4,11],[4,12,4,16],[4,17,4,18]]}
[]
[null,null,null,null,null,null,"Categoria: 05 anos  Diretor Regional: CHIARI"]
[]
[]
[null,null,null,null,null,null,"1ª ETAPA ",null,"2ª ETAPA",null,"3ª ETAPA",null,"4ª ETAPA",null,null,null,null,"5ª ETAPA",null,"QTDE PROVAS","TOTAL PONTOS"]
[null,"R","ANIMAL","RAÇA","PROPRIETÁRIO","CRIADOR","I  Temporada Oficial",null,"II Temporada Oficial",null,"III Temporada Oficial",null,"Campeonato Mineiro de Cavalos Novos",null,null,null,null,"V Temporada Oficial"]
[null,null,null,null,null,null,null,null,null,null,null,null,"1º DIA",null,"2º DIA",null,"TOTAL"]
[null,null,null,null,null,null,"CL","TOTAL","CL","TOTAL","CL","TOTAL","CL","PTS","CL","PTS",null,"CL","TOTAL"]
[null,1,"HFG LOLITA (IA)","BH","HELTON MORGAN SANTOS","HARAS FG",1,10,null,null,null,null,null,null,null,null,null,null,null,{"$f":"SUBTOTAL(3,G9,I9,K9,R9,M9,O9)","v":1},{"$f":"SUM(Q9,S9,L9,J9,H9)","v":10}]
[null,2,"LM HEX-CHOW","BH","LEONARDO MARTINS","HARAS LM",2,7,null,null,null,null,null,null,null,null,null,null,null,{"$f":"SUBTOTAL(3,G10,I10,K10,R10,M10,O10)","v":1},{"$f":"SUM(Q10,S10,L10,J10,H10)","v":7}]
[null,3,"CARTER V.A.","BH","HARAS SANTA ESMERALDA LTDA.","VICTOR CHIARI ALVES",3,5,null,null,null,null,null,null,null,null,null,null,null,1,5]
[null,4,"AC HÓRUS (IA)","BH","HELIANA FERNANDA DE A. ANDRADE","HARAS FAZENDA CAMARAO",4,3,null,null,null,null,null,null,null,null,null,null,null,1,3]
[null,5,"DAME DE REVEL 3K","BH","FELIPE CRIVELLARI MACHADO SIMOES","HARAS 3K                                          ",5,2,null,null,null,null,null,null,null,null,null,null,null,1,2]
[null,6,"ACL SHADOW (IA)","BH","AFRANIO ALMEIDA DE CARVALHO LAGE      ","FAZENDA CAMARAO",6,1,null,null,null,null,null,null,null,null,null,null,null,1,1]

{"sheet":"6 ANOS","index":3,"n_rows":16,"n_cols":21,"rows_kept":16,"cut":false,"hidden":false,"merged":[[4,19,7,19],[4,20,7,20],[5,1,7,1],[5,2,7,2],[5,3,7,3],[5,4,7,4],[5,5,7,5],[5,6,6,7],[5,8,6,9],[5,10,6,11],[5,12,5,16],[5,17,6,18],[6,12,6,13],[6,14,6,15],[6,16,7,16],[0,1,2,5],[0,6,0,18],[1,6,2,15],[3,1,3,5],[4,6,4,7],[4,8,4,9],[4,10,4,11],[4,12,4,16],[4,17,4,18]]}
[]
[null,null,null,null,null,null,"Categoria: 06 anos  Diretor Regional: CHIARI"]
[]
[]
[null,null,null,null,null,null,"1ª ETAPA ",null,"2ª ETAPA",null,"3ª ETAPA",null,"4ª ETAPA",null,null,null,null,"5ª ETAPA",null,"QTDE PROVAS","TOTAL PONTOS"]
[null,"R","ANIMAL","RAÇA","PROPRIETÁRIO","CRIADOR","I  Temporada Oficial",null,"II Temporada Oficial",null,"III Temporada Oficial",null,"Campeonato Mineiro de Cavalos Novos",null,null,null,null,"V Temporada Oficial"]
[null,null,null,null,null,null,null,null,null,null,null,null,"1º DIA",null,"2º DIA",null,"TOTAL"]
[null,null,null,null,null,null,"CL","TOTAL","CL","TOTAL","CL","TOTAL","CL","PTS","CL","PTS",null,"CL","TOTAL"]
[null,1,"CATALINA HARAS TRES BARRAS (IA)","BH","VALERIA MARINHO GONTIJO MACHADO","HARAS TRES BARRAS",1,12,null,null,null,null,null,null,null,null,null,null,null,{"$f":"SUBTOTAL(3,G9,I9,K9,R9,M9,O9)","v":1},{"$f":"SUM(Q9,S9,L9,J9,H9)","v":12}]
[null,2,"HFG QUAMAN (IA)","BH","HELTON MORGAN SANTOS","HARAS FG",2,9,null,null,null,null,null,null,null,null,null,null,null,{"$f":"SUBTOTAL(3,G10,I10,K10,R10,M10,O10)","v":1},{"$f":"SUM(Q10,S10,L10,J10,H10)","v":9}]
[null,3,"CASIRELO C JMEN II","BH","MARIANA FRAUCHES CHAVES","HARAS AGROMEN                                    ",3,7,null,null,null,null,null,null,null,null,null,null,null,1,7]
[null,4,"DORA LJR (IA)","BH","ALEXANDRE FERREIRA GONCALVES","HARAS LJR",4,5,null,null,null,null,null,null,null,null,null,null,null,1,5]
[null,5,"GOLPE RDC","BH","MARIA DO CARMO RIBEIRO","RECANTO DOS CAVALEIROS",5,4,null,null,null,null,null,null,null,null,null,null,null,1,4]
[null,6,"IAGO GMS (IA)","BH","HARAS PRIMAVERA LTDA","HARAS PRIMAVERA                                   ",6,3,null,null,null,null,null,null,null,null,null,null,null,1,3]
[null,7,"JUMPER COOPER (IA)","BH","JOAO NEY PRADO COLAGROSSI FILHO","CENTRO HIPICO ALDEIA DA SERRA",7,2,null,null,null,null,null,null,null,null,null,null,null,1,2]
[null,8,"CHARLOTTE DA CECILIANA (IA)","BH","ANA FLAVIA FARIA DE CAMARGOS","ANA FLAVIA FARIA DE CAMARGOS",8,1,null,null,null,null,null,null,null,null,null,null,null,1,1]

{"sheet":"7 ANOS","index":4,"n_rows":11,"n_cols":21,"rows_kept":11,"cut":false,"hidden":false,"merged":[[4,19,7,19],[4,20,7,20],[5,1,7,1],[5,2,7,2],[5,3,7,3],[5,4,7,4],[5,5,7,5],[5,6,6,7],[5,8,6,9],[5,10,6,11],[5,12,5,16],[5,17,6,18],[6,12,6,13],[6,14,6,15],[6,16,7,16],[0,1,2,5],[0,6,0,18],[1,6,2,15],[3,1,3,5],[4,6,4,7],[4,8,4,9],[4,10,4,11],[4,12,4,16],[4,17,4,18]]}
[]
[null,null,null,null,null,null,"Categoria: 07 anos  Diretor Regional: CHIARI"]
[]
[]
[null,null,null,null,null,null,"1ª ETAPA ",null,"2ª ETAPA",null,"3ª ETAPA",null,"4ª ETAPA",null,null,null,null,"5ª ETAPA",null,"QTDE PROVAS","TOTAL PONTOS"]
[null,"R","ANIMAL","RAÇA","PROPRIETÁRIO","CRIADOR","I  Temporada Oficial",null,"II Temporada Oficial",null,"III Temporada Oficial",null,"Campeonato Mineiro de Cavalos Novos",null,null,null,null,"V Temporada Oficial"]
[null,null,null,null,null,null,null,null,null,null,null,null,"1º DIA",null,"2º DIA",null,"TOTAL"]
[null,null,null,null,null,null,"CL","TOTAL","CL","TOTAL","CL","TOTAL","CL","PTS","CL","PTS",null,"CL","TOTAL"]
[null,1,"BASTHET 3K (IA)","BH","WAGNER DE MELO  LADEIRA SENNA","HARAS 3K                                          ",1,7,null,null,null,null,null,null,null,null,null,null,null,{"$f":"SUBTOTAL(3,G9,I9,K9,R9,M9,O9)","v":1},{"$f":"SUM(Q9,S9,L9,J9,H9)","v":7}]
[null,2,"ESMERALDA MEARA (IA)","BH","MAURO ANTONIO COSTA DE ARAUJO","MAURO ANTONIO COSTA DE ARAUJO",2,4,null,null,null,null,null,null,null,null,null,null,null,{"$f":"SUBTOTAL(3,G10,I10,K10,R10,M10,O10)","v":1},{"$f":"SUM(Q10,S10,L10,J10,H10)","v":4}]
[null,3,"CEHJUR PRINCESS QUINY (IA)","BH","CEHJUR - CENTRO HIPICO JUNIA RABELLO LTDA - ME","CENTRO HIPICO JUNIA RABELLO",3,2,null,null,null,null,null,null,null,null,null,null,null,1,2]

{"sheet":"8 ANOS","index":5,"n_rows":9,"n_cols":21,"rows_kept":9,"cut":false,"hidden":false,"merged":[[4,19,7,19],[4,20,7,20],[5,1,7,1],[5,2,7,2],[5,3,7,3],[5,4,7,4],[5,5,7,5],[5,6,6,7],[5,8,6,9],[5,10,6,11],[5,12,5,16],[5,17,6,18],[6,12,6,13],[6,14,6,15],[6,16,7,16],[0,1,2,5],[0,6,0,18],[1,6,2,15],[3,1,3,5],[4,6,4,7],[4,8,4,9],[4,10,4,11],[4,12,4,16],[4,17,4,18]]}
[]
[null,null,null,null,null,null,"Categoria: 08 anos  Diretor Regional: CHIARI"]
[]
[]
[null,null,null,null,null,null,"1ª ETAPA ",null,"2ª ETAPA",null,"3ª ETAPA",null,"4ª ETAPA",null,null,null,null,"5ª ETAPA",null,"QTDE PROVAS","TOTAL PONTOS"]
[null,"R","ANIMAL","RAÇA","PROPRIETÁRIO","CRIADOR","I  Temporada Oficial",null,"II Temporada Oficial",null,"III Temporada Oficial",null,"Campeonato Mineiro de Cavalos Novos",null,null,null,null,"V Temporada Oficial"]
[null,null,null,null,null,null,null,null,null,null,null,null,"1º DIA",null,"2º DIA",null,"TOTAL"]
[null,null,null,null,null,null,"CL","TOTAL","CL","TOTAL","CL","TOTAL","CL","PTS","CL","PTS",null,"CL","TOTAL"]
[null,1,"CAETANO G (IA)","BH","PAULA LUISA DUARTE GONÇALVES","PARQUE HIPICO DE BRASILIA",1,5,null,null,null,null,null,null,null,null,null,null,null,{"$f":"SUBTOTAL(3,G9,I9,K9,R9,M9,O9)","v":1},{"$f":"SUM(Q9,S9,L9,J9,H9)","v":5}]